bitfinex/quotes_ETHUSD_20241124
["timestamp","ask_amount","ask_price","bid_price","bid_amount"]
[1732413733773,0.27094708,3428.3,3428.0,3.2168398]
[1732413734074,2.77647677,3428.5,3428.0,3.2168398]
[1732413734243,0.30740289,3428.4,3428.0,3.2168398]
[1732413734652,0.27094097,3428.3,3428.0,3.2168398]
[1732413734963,0.30740442,3428.2,3428.0,3.2168398]
[1732413735150,0.27094097,3428.1,3428.0,3.2168398]
[1732413735754,0.27094097,3428.4,3428.0,3.2168398]
[1732413736260,0.27110566,3428.3,3428.0,3.2168398]
[1732413736571,0.30757143,3428.2,3428.0,3.2168398]
[1732413736735,0.27110566,3428.1,3428.0,3.2168398]
[1732413738545,0.27110566,3428.1,3428.0,4.0390398]
[1732413738746,0.27110566,3428.4,3428.0,4.44294378]
[1732413739049,2.77647677,3428.9,3428.0,4.44294378]
[1732413739050,0.27110566,3428.3,3428.0,4.0390398]
[1732413739251,0.27110566,3428.2,3428.0,4.0390398]
[1732413739476,0.59123449,3428.8,3428.0,4.0390398]
[1732413739690,1.02570035,3428.8,3428.2,0.8222]
[1732413739999,0.271535,3428.7,3428.2,0.8222]
[1732413740144,0.271535,3428.6,3428.2,0.8222]
[1732413740348,0.271535,3428.5,3428.3,0.44429438]
[1732413740550,0.59123449,3428.8,3428.3,0.44429438]
[1732413740750,0.27156705,3428.7,3428.3,0.44429438]
[1732413741083,0.27156705,3428.6,3428.3,0.44429438]
[1732413741271,0.27156705,3428.5,3428.2,0.8222]
[1732413741475,0.03645613,3429.1,3428.3,2.9169]
[1732413741820,0.27160607,3429.0,3428.3,2.9169]
[1732413742089,3.04808284,3428.9,3428.3,2.9169]
[1732413742262,0.70607193,3428.8,3428.3,2.9169]
[1732413742464,0.27160607,3428.7,3428.3,2.9169]
[1732413742848,0.27160607,3428.6,3428.3,2.9169]
[1732413743054,0.27160607,3428.5,3428.3,2.9169]
[1732413743257,0.27160607,3428.4,3428.3,2.9169]
[1732413743456,0.27160607,3428.7,3428.3,3.61249398]
[1732413743654,0.27160607,3428.6,3428.3,3.61249398]
[1732413743893,0.27160607,3428.5,3428.3,3.61249398]
[1732413744096,0.27160607,3428.4,3428.3,2.9169]
[1732413744570,0.27160607,3428.7,3428.3,2.9169]
[1732413744773,0.27160607,3428.6,3428.3,2.9169]
[1732413745085,0.27160607,3428.5,3428.3,2.9169]
[1732413745395,0.27160607,3428.4,3428.3,2.9169]
[1732413746098,0.27160607,3428.7,3428.3,2.9169]
[1732413746298,0.2716946,3428.6,3428.3,3.61249398]
[1732413746602,0.2716946,3428.5,3428.3,3.61249398]
[1732413746756,0.43446586,3428.8,3428.3,3.61249398]
[1732413746955,0.27169936,3428.7,3428.3,3.61249398]
[1732413747201,0.27169936,3428.6,3428.3,3.61249398]
[1732413747496,0.43446586,3428.8,3428.3,3.61249398]
[1732413747497,0.27167957,3428.5,3428.4,0.8222]
[1732413747696,0.58516147,3429.1,3428.5,0.8222]
[1732413747860,0.27164144,3429.0,3428.6,2.9166]
[1732413748056,0.58516147,3429.1,3428.7,0.8222]
[1732413748296,0.27163263,3429.0,3428.8,2.9165]
[1732413748496,0.43463529,3429.6,3428.8,2.9165]
[1732413748796,0.27153918,3429.5,3428.8,2.9165]
[1732413748964,0.27153918,3429.4,3428.8,2.9165]
[1732413749173,0.27153918,3429.3,3428.8,2.9165]
[1732413749389,0.27153918,3429.2,3428.8,2.9165]
[1732413749608,0.27153918,3429.1,3428.8,2.9165]
[1732413749893,0.27153918,3429.0,3428.8,2.9165]
[1732413750101,0.27153918,3428.9,3428.8,2.9165]
[1732413750877,0.27143752,3428.9,3428.8,2.9165]
[1732413751403,0.43430004,3429.2,3428.8,2.9165]
[1732413751700,0.27140053,3429.1,3428.8,2.9165]
[1732413751870,0.27140053,3429.0,3428.8,2.9165]
[1732413752073,0.27140053,3428.9,3428.8,2.9165]
[1732413752263,0.43430004,3429.2,3428.8,2.9165]
[1732413752465,0.27142608,3429.1,3428.8,2.9165]
[1732413752688,0.27142608,3429.0,3428.8,2.9165]
[1732413752860,0.27142608,3428.9,3428.8,2.9165]
[1732413753065,0.27142608,3429.1,3428.8,2.9165]
[1732413753276,0.27142608,3429.0,3428.8,2.9165]
[1732413753508,0.27142608,3428.9,3428.8,2.9165]
[1732413754103,0.27142608,3429.1,3428.8,2.9165]
[1732413754269,0.27142608,3429.0,3428.8,2.9165]
[1732413754469,0.30787952,3429.2,3428.8,2.9165]
[1732413754676,0.27142608,3429.1,3428.8,2.9165]
[1732413754879,0.27142608,3429.0,3428.8,2.9165]
[1732413755084,0.27142608,3428.9,3428.8,2.9165]
[1732413755576,0.27142608,3429.2,3428.8,3.29037]
[1732413755792,0.27142608,3429.1,3428.8,3.29037]
[1732413755997,0.27142608,3429.0,3428.8,2.9165]
[1732413756180,0.98430004,3429.6,3428.9,0.7559]
[1732413756382,0.27153166,3429.5,3429.0,3.28354]
[1732413756583,0.27153166,3429.4,3429.0,2.9163]
[1732413756904,0.98430004,3429.6,3429.0,2.9163]
[1732413756905,2.77647677,3429.1,3429.0,2.9163]
[1732413757067,3.04800843,3429.1,3429.0,2.9163]
[1732413757263,3.48230847,3429.1,3429.0,2.9163]
[1732413757995,3.04800843,3429.1,3429.0,2.9163]
[1732413758605,2.77647677,3430.0,3429.1,0.7678]
[1732413758774,0.70611489,3429.9,3429.2,2.9161]
[1732413758976,0.27158265,3429.8,3429.3,0.7678]
[1732413759174,0.27158265,3429.7,3429.4,2.916]
[1732413759404,0.27158265,3429.6,3429.4,2.916]
[1732413759574,0.27158265,3429.5,3429.4,2.916]
[1732413760082,2.77647677,3430.0,3429.4,2.916]
[1732413760283,0.27153322,3429.9,3429.4,3.3241353]
[1732413760510,0.27153322,3429.8,3429.4,3.3241353]
[1732413760810,0.27153322,3429.7,3429.4,3.3241353]
[1732413761104,0.26045176,3429.6,3429.5,0.40919353]
[1732413761267,0.26045176,3429.6,3429.5,3.32509353]
[1732413762206,3.03692853,3429.6,3429.5,2.9159]
[1732413762905,3.4711983,3429.6,3429.5,2.9159]
[1732413763110,4.0211983,3429.6,3429.5,2.9159]
[1732413763819,3.03692853,3429.6,3429.5,2.9159]
[1732413764022,0.26045176,3429.6,3429.5,3.20749]
[1732413764516,0.43424856,3429.9,3429.5,3.20749]
[1732413764681,0.43424856,3429.9,3429.6,0.7881]
[1732413765018,0.05452118,3429.8,3429.7,4.103359]
[1732413765169,2.77647677,3430.6,3429.7,2.9157]
[1732413765375,2.77647677,3430.6,3429.8,0.7881]
[1732413765684,2.77647677,3430.6,3429.9,2.9155]
[1732413766582,0.43402668,3430.8,3430.0,0.7881]
[1732413766782,2.92885717,3431.0,3430.1,2.9154]
[1732413766994,0.43402668,3430.9,3430.1,2.9154]
[1732413767170,0.47046252,3430.9,3430.1,2.9154]
[1732413767369,2.77647677,3430.6,3430.1,2.9154]
[1732413768221,3.21055165,3430.6,3430.1,2.9154]
[1732413769293,0.43394559,3430.5,3430.1,2.9154]
[1732413769489,2.81291649,3430.6,3430.1,2.9154]
[1732413769695,3.24684438,3430.6,3430.1,2.9154]
[1732413770625,2.77647677,3430.2,3430.1,2.9154]
[1732413771608,3.64637677,3430.2,3430.1,2.9154]
[1732413771822,4.08030466,3430.2,3430.1,2.9154]
[1732413772790,4.0803649,3430.2,3430.1,2.9154]
[1732413773202,4.35160748,3430.2,3430.1,2.9154]
[1732413773602,4.90160748,3430.2,3430.1,2.9154]
[1732413775021,4.9561988,3430.2,3430.1,2.9154]
[1732413775205,2.17972203,3430.2,3430.1,2.9154]
[1732413775527,4.52221067,3430.2,3430.1,2.9154]
[1732413775714,4.9561988,3430.2,3430.1,2.9154]
[1732413776890,3.5362988,3430.2,3430.1,2.9154]
[1732413777424,3.10231067,3430.2,3430.1,2.9154]
[1732413779416,3.5362988,3430.2,3430.1,2.9154]
[1732413779609,3.10231067,3430.2,3430.1,2.9154]
[1732413779813,0.3258339,3430.2,3430.1,3.29886]
[1732413780429,0.05459132,3430.2,3430.1,4.21806]
[1732413780640,2.77647677,3430.6,3430.1,4.21806]
[1732413780823,0.27144621,3430.5,3430.2,0.9192]
[1732413780992,0.43429359,3430.9,3430.3,3.8344]
[1732413781335,0.2714331,3430.8,3430.3,3.8344]
[1732413781489,0.2714331,3430.7,3430.3,3.8344]
[1732413781693,0.2714331,3430.6,3430.3,3.8344]
[1732413781917,0.2714331,3430.5,3430.3,3.8344]
[1732413782249,2.92885717,3431.0,3430.3,3.8344]
[1732413782394,0.70554261,3430.9,3430.3,4.21784]
[1732413785401,0.70554261,3430.9,3430.4,0.9192]
[1732413785607,0.1523804,3431.0,3430.6,0.9192]
[1732413785904,0.1523804,3431.0,3430.8,0.9192]
[1732413786104,0.1523804,3431.0,3430.9,2.9147]
[1732413786328,0.1523804,3431.0,3430.9,3.8339]
[1732413789994,0.19548601,3431.0,3430.9,3.8339]
[1732413790194,0.19548601,3431.0,3430.9,4.21729]
[1732413795229,0.19548601,3431.0,3430.9,3.8339]
[1732413802827,0.18256875,3431.0,3430.9,3.8339]
[1732413814382,0.18256875,3431.0,3430.9,3.9339]
[1732413815926,0.18256875,3431.0,3430.9,3.8839]
[1732413817635,0.18256875,3431.0,3430.9,3.9838997]
[1732413817851,0.18256875,3431.0,3430.9,4.38228967]
[1732413818575,0.18256875,3431.0,3430.9,7.70876644]
[1732413818781,0.18256875,3431.0,3430.9,7.99946644]
[1732413819145,0.1523804,3431.0,3430.9,4.38228967]
[1732413819653,0.18516033,3431.0,3430.9,4.38228967]
[1732413821176,0.005,3431.4,3431.3,0.1]
[1732413821383,0.005,3431.4,3431.3,4.0432997]
[1732413825601,0.005,3432.7,3431.8,0.1999997]
[1732413825748,0.005,3432.7,3432.2,0.1]
[1732413825953,0.005,3432.7,3432.4,0.879]
[1732413826177,0.005,3432.7,3432.6,0.979]
[1732413826378,0.005,3432.7,3432.6,3.8422]
[1732413831195,0.005,3432.7,3432.6,2.9632]
[1732413831369,0.9146,3432.7,3432.6,2.9632]
[1732413833168,0.005,3432.7,3432.6,2.9632]
[1732413838218,0.005,3432.7,3432.6,3.8758]
[1732413838378,0.005,3432.7,3432.6,4.17212]
[1732413839691,0.005,3432.7,3432.6,4.72212]
[1732413841415,0.005,3432.7,3432.6,5.11252]
[1732413842521,0.005,3432.7,3432.6,7.95558519]
[1732413842730,0.79284463,3433.3,3433.2,0.1999997]
[1732413843018,0.93780427,3434.8,3433.2,0.1999997]
[1732413843019,1.25288351,3436.3,3434.4,0.1]
[1732413843259,3.98242267,3436.2,3434.8,0.0999997]
[1732413843412,0.2705459,3436.1,3434.9,2.9613]
[1732413843612,0.9354,3436.1,3434.9,2.9613]
[1732413843807,0.27017648,3436.0,3434.9,2.9613]
[1732413844033,2.77647677,3435.8,3434.9,2.9613]
[1732413844248,0.9354,3435.7,3434.9,2.9613]
[1732413844713,0.9354,3435.3,3434.9,2.9613]
[1732413849145,3.71187677,3435.0,3434.9,2.9613]
[1732413854126,4.5319148,3435.0,3434.9,2.9613]
[1732413855461,4.96424092,3435.0,3434.9,2.9613]
[1732413855667,4.5319148,3435.0,3434.9,2.9613]
[1732413857655,4.26187677,3435.0,3434.9,2.9613]
[1732413858172,4.53211677,3435.0,3434.9,2.9613]
[1732413859067,3.98211677,3435.0,3434.9,2.9613]
[1732413860532,4.41461356,3435.0,3434.9,2.9613]
[1732413861849,3.71187677,3435.0,3434.9,2.9613]
[1732413862173,4.41477635,3435.0,3434.9,2.9613]
[1732413863564,4.41521783,3435.0,3434.9,2.9613]
[1732413863766,5.12594724,3435.0,3434.9,2.9613]
[1732413864745,5.67594724,3435.0,3434.9,2.9613]
[1732413865681,5.67594724,3435.0,3434.9,2.81950001]
[1732413865881,5.67657898,3435.0,3434.9,2.81950001]
[1732413866884,5.67657898,3435.0,3434.9,2.19140001]
[1732413867272,5.67657898,3435.0,3434.9,1.53769811]
[1732413868086,5.24336495,3435.0,3434.9,1.53769811]
[1732413869762,4.97260618,3435.0,3434.9,1.53769811]
[1732413869965,5.24384403,3435.0,3434.9,1.53769811]
[1732413870787,5.24384403,3435.0,3434.9,0.89629811]
[1732413871993,4.30844403,3435.0,3433.3,0.9254]
[1732413872287,2.77647677,3434.0,3433.3,0.9254]
[1732413872675,2.77647677,3433.6,3433.4,2.9124]
[1732413873454,2.77647677,3434.0,3433.5,0.9005]
[1732413873690,2.77647677,3434.0,3433.6,2.9124]
[1732413873691,0.27130474,3433.9,3433.6,2.9124]
[1732413873848,0.27130474,3433.8,3433.6,2.9124]
[1732413874047,0.27130474,3433.7,3433.6,2.9124]
[1732413877489,0.27135261,3433.7,3433.6,2.9124]
[1732413877652,0.27135261,3433.9,3433.6,2.9124]
[1732413877848,0.27135261,3433.8,3433.6,2.9124]
[1732413878086,0.27135261,3433.7,3433.6,2.9124]
[1732413879492,0.27135261,3433.7,3433.6,4.19349]
[1732413879658,2.77647677,3434.3,3433.6,4.19349]
[1732413879852,0.8886,3434.5,3433.6,4.19349]
[1732413879853,2.77647677,3433.9,3433.6,3.8122]
[1732413880057,0.27133762,3433.8,3433.6,3.8122]
[1732413881296,2.77647677,3433.9,3433.6,3.8122]
[1732413881456,0.27137865,3433.7,3433.6,3.8122]
[1732413881657,0.27140137,3433.8,3433.6,3.8122]
[1732413881949,0.27140137,3433.7,3433.6,3.8122]
[1732413885028,0.27140137,3433.7,3433.6,2.9124]
[1732413885522,0.27154566,3433.7,3433.6,2.9124]
[1732413888365,0.27154566,3433.7,3433.6,3.8122]
[1732413888621,1.49017631,3433.7,3433.6,3.8122]
[1732413889429,0.27155867,3433.7,3433.6,3.8122]
[1732413889637,0.8886,3435.0,3433.7,0.8998]
[1732413889840,1.21863065,3434.2,3433.9,0.8998]
[1732413890017,1.21863065,3434.2,3434.0,2.9121]
[1732413890337,1.45386294,3435.5,3434.1,0.8998]
[1732413890529,1.45386294,3435.5,3433.5,0.1]
[1732413890530,1.21863065,3434.7,3434.3,0.8998]
[1732413890706,0.27143598,3434.6,3434.4,3.8115]
[1732413890895,2.7708365,3435.0,3434.5,0.8998]
[1732413891091,0.27143123,3434.9,3434.6,2.9115]
[1732413891335,0.27143123,3434.8,3434.6,2.9115]
[1732413891501,0.27143123,3434.7,3434.6,2.9115]
[1732413893997,3.04226773,3434.7,3434.6,2.9115]
[1732413896901,2.7708365,3434.7,3434.6,2.9115]
[1732413897206,3.04208352,3434.7,3434.6,2.9115]
[1732413897397,0.27124702,3434.7,3434.6,3.8016]
[1732413898203,0.27124702,3434.7,3434.6,2.9115]
[1732413899013,1.13554702,3434.7,3434.6,2.9115]
[1732413900723,3.90638352,3434.7,3434.6,2.9115]
[1732413901033,4.45638352,3434.7,3434.6,2.9115]
[1732413902696,1.4143,3434.7,3434.6,2.9115]
[1732413902901,4.45640278,3434.7,3434.6,2.9115]
[1732413903333,4.45643143,3434.7,3434.6,2.9115]
[1732413904209,4.45643143,3434.7,3432.4,0.8901]
[1732413904210,0.55,3434.4,3432.4,0.8901]
[1732413904540,2.7708365,3433.6,3432.4,0.8901]
[1732413904740,2.7708365,3433.6,3432.5,2.9129]
[1732413905041,2.7708365,3433.6,3432.7,0.8901]
[1732413905337,2.7708365,3433.6,3432.8,2.9131]
[1732413905713,2.7708365,3433.6,3432.9,0.8901]
[1732413905914,2.7708365,3433.6,3433.0,3.803]
[1732413906137,2.7708365,3433.6,3433.2,0.8901]
[1732413906431,2.7708365,3433.6,3433.1,0.3803]
[1732413906432,2.7708365,3433.6,3433.4,0.8901]
[1732413906638,2.7708365,3433.6,3433.5,2.9125]
[1732413906801,2.7708365,3434.0,3433.5,2.9125]
[1732413906999,0.27136787,3433.9,3433.5,2.9125]
[1732413907317,2.7708365,3434.0,3433.6,0.38026]
[1732413907521,0.27138479,3433.9,3433.7,2.9123]
[1732413907703,2.7708365,3434.0,3433.7,2.9123]
[1732413907898,0.27139119,3433.9,3433.8,0.8901]
[1732413908223,0.2713923,3433.9,3433.8,4.18254]
[1732413908425,0.2713923,3433.9,3433.8,3.8023]
[1732413908940,2.7708365,3434.4,3433.8,3.8023]
[1732413909135,0.27142471,3434.3,3433.8,3.8023]
[1732413909325,0.27142471,3434.2,3433.8,4.18253]
[1732413909526,0.27142471,3434.1,3433.8,4.18253]
[1732413909723,0.27142471,3434.0,3433.8,4.18253]
[1732413909929,2.7708365,3434.4,3433.9,0.418253]
[1732413910153,0.27146773,3434.3,3434.0,2.9121]
[1732413910440,0.27146773,3434.2,3434.1,0.8901]
[1732413910757,0.27146773,3434.2,3434.1,4.2241453]
[1732413911036,2.7708365,3434.4,3434.1,3.8021]
[1732413911240,0.27146419,3434.3,3434.1,3.8021]
[1732413911541,2.7708365,3434.8,3434.1,3.8021]
[1732413911702,0.27146753,3434.7,3434.1,4.18231]
[1732413911906,0.27146753,3434.6,3434.1,4.18231]
[1732413912107,0.27146753,3434.5,3434.1,4.18231]
[1732413912309,0.27146753,3434.4,3434.1,3.8021]
[1732413912523,2.7708365,3434.7,3434.1,3.8021]
[1732413913048,0.27147363,3434.6,3434.1,3.8021]
[1732413913199,0.27147363,3434.5,3434.1,3.8021]
[1732413913405,0.27147363,3434.4,3434.1,4.18231]
[1732413913617,2.7708365,3434.7,3434.1,4.18231]
[1732413913903,0.27146103,3434.6,3434.1,4.18231]
[1732413914111,0.27146103,3434.5,3434.1,4.18231]
[1732413914342,0.27146103,3434.4,3434.1,4.18231]
[1732413914541,2.7708365,3434.6,3434.1,3.8021]
[1732413914738,0.27146211,3434.5,3434.1,3.8021]
[1732413915038,0.27146211,3434.4,3434.1,3.8021]
[1732413915239,2.7708365,3434.6,3434.1,4.18231]
[1732413915450,0.27145049,3434.5,3434.1,4.18231]
[1732413915745,0.27145049,3434.4,3434.1,3.8021]
[1732413916035,2.7708365,3434.6,3434.1,3.8021]
[1732413916239,0.27145456,3434.5,3434.1,3.8021]
[1732413916448,2.7708365,3434.6,3434.1,3.8021]
[1732413916644,0.27144925,3434.5,3434.2,0.9074]
[1732413916849,2.7708365,3434.6,3434.4,0.9014]
[1732413917023,2.7708365,3435.0,3434.5,2.9116]
[1732413917208,0.27143811,3434.9,3434.5,2.9116]
[1732413917545,0.27143811,3434.8,3434.5,2.9116]
[1732413917735,0.27143811,3434.7,3434.5,2.9116]
[1732413917940,2.7708365,3435.0,3434.5,2.9116]
[1732413918109,0.27144867,3434.9,3434.5,2.9116]
[1732413918310,0.27144867,3434.8,3434.5,2.9116]
[1732413918521,0.27144867,3434.7,3434.5,2.9116]
[1732413918759,2.7708365,3435.0,3434.5,2.9116]
[1732413918958,0.27147171,3434.9,3434.5,2.9116]
[1732413919261,0.27147171,3434.8,3434.5,2.9116]
[1732413919459,0.27147171,3434.7,3434.5,2.9116]
[1732413919623,0.27147171,3434.6,3434.5,2.9116]
[1732413920047,2.7708365,3435.0,3434.5,2.9116]
[1732413920216,0.2714731,3434.9,3434.5,3.2929]
[1732413920422,0.2714731,3434.8,3434.5,3.2929]
[1732413920620,0.2714731,3434.7,3434.5,3.2929]
[1732413920862,2.7708365,3435.0,3434.5,3.2929]
[1732413921023,0.27145902,3434.9,3434.5,3.2929]
[1732413921354,0.27145902,3434.8,3434.5,3.2929]
[1732413921556,0.27145902,3434.9,3434.5,3.2929]
[1732413921762,0.27145902,3434.8,3434.5,3.2929]
[1732413922058,0.27145902,3434.7,3434.5,3.2929]
[1732413922223,2.7708365,3435.0,3434.5,3.2929]
[1732413922424,0.27143473,3434.9,3434.5,3.2929]
[1732413922625,0.27143473,3434.8,3434.5,3.2929]
[1732413922941,0.27143473,3434.7,3434.5,3.2929]
[1732413923142,2.7708365,3435.0,3434.6,0.9014]
[1732413923352,0.27142063,3434.9,3434.7,2.9115]
[1732413923555,0.27142063,3434.8,3434.7,2.9115]
[1732413925568,0.27142063,3434.8,3434.7,4.19419]
[1732413925727,1.21776464,3435.3,3434.8,0.9014]
[1732413925934,1.21776464,3435.6,3434.9,2.9113]
[1732413926275,1.21776464,3435.6,3435.0,0.9014]
[1732413926450,1.21776464,3435.6,3434.8,0.329279]
[1732413926451,1.21776464,3435.6,3435.1,2.9111]
[1732413926650,1.21776464,3435.6,3435.2,0.9014]
[1732413926974,1.21776464,3435.6,3435.3,2.911]
[1732413930350,0.9165,3436.2,3435.3,2.911]
[1732413930585,1.21776464,3435.5,3435.4,0.9014]
[1732413930789,1.21776464,3435.5,3435.4,3.8123]
[1732413931074,1.21776464,3435.5,3435.4,4.19353]
[1732413931675,1.21776464,3435.5,3435.4,3.8123]
[1732413932373,1.29731521,3435.5,3435.4,3.8123]
[1732413932983,0.07955057,3435.5,3435.4,3.8123]
[1732413933145,0.09046951,3436.3,3435.4,3.8123]
[1732413933346,0.08004474,3435.5,3435.4,3.8123]
[1732413933583,1.21776464,3435.7,3435.4,4.19353]
[1732413933750,1.21776464,3435.7,3435.4,3.8123]
[1732413936051,1.21776464,3435.7,3435.5,0.9434]
[1732413936251,1.21776464,3435.7,3435.6,2.9107]
[1732413936486,1.21776464,3436.0,3435.7,0.94]
[1732413936777,1.21776464,3436.0,3435.9,0.94]
[1732413936982,1.21776464,3436.0,3435.9,3.8504]
[1732413937392,2.43552928,3436.0,3435.9,2.9104]
[1732413937551,1.01726951,3436.3,3435.9,2.9104]
[1732413937751,2.43552928,3436.0,3435.9,2.9104]
[1732413937984,1.48848473,3436.0,3435.9,2.9104]
[1732413938186,0.09046951,3436.3,3435.9,4.14144]
[1732413938391,1.21776464,3436.0,3435.9,4.14144]
[1732413938549,1.21776464,3436.0,3435.9,2.9104]
[1732413938758,2.43552928,3436.0,3435.9,2.9104]
[1732413939060,1.01726951,3436.3,3435.9,2.9104]
[1732413939247,1.21776464,3436.0,3435.9,2.9104]
[1732413940272,1.29266083,3436.0,3435.9,2.9104]
[1732413941500,2.51042547,3436.0,3435.9,2.9104]
[1732413942175,3.70801038,3436.0,3435.9,2.9104]
[1732413944873,3.70813503,3436.0,3435.9,2.9104]
[1732413946498,3.70693503,3436.0,3435.9,2.9104]
[1732413950598,4.25693503,3436.0,3435.9,2.9104]
[1732413951975,4.25738165,3436.0,3435.9,2.9104]
[1732413952516,4.25747751,3436.0,3435.9,2.9104]
[1732413954407,4.98420227,3436.0,3435.9,2.9104]
[1732413955605,4.98540227,3436.0,3435.9,2.9104]
[1732413955912,4.98573091,3436.0,3435.9,2.9104]
[1732413956880,4.25900615,3436.0,3435.9,2.9104]
[1732413958316,2.78220615,3436.0,3435.9,2.9104]
[1732413958616,0.34667687,3436.0,3435.9,2.9104]
[1732413958910,1.56444151,3436.0,3435.9,2.9104]
[1732413959898,1.56433661,3436.0,3435.9,2.9104]
[1732413960074,0.34657197,3436.0,3435.9,3.29327]
[1732413960288,1.56433976,3436.0,3435.9,3.29327]
[1732413960584,1.56174882,3436.0,3435.9,3.29327]
[1732413960792,0.34398418,3436.0,3435.9,3.29327]
[1732413960978,1.48944357,3436.0,3435.9,3.29327]
[1732413961203,1.56177329,3436.0,3435.9,3.29327]
[1732413962008,1.29009436,3436.0,3435.9,3.29327]
[1732413964226,1.56163762,3436.0,3435.9,3.29327]
[1732413964590,1.29009436,3436.0,3435.9,3.29327]
[1732413965430,1.29009436,3436.0,3435.9,2.9104]
[1732413965431,1.56161762,3436.0,3435.9,2.9104]
[1732413966011,1.56162498,3436.0,3435.9,2.9104]
[1732413966491,1.56162498,3436.0,3435.9,3.8287]
[1732413970528,0.07232972,3436.0,3435.9,3.8287]
[1732413970733,1.29009436,3436.0,3435.9,4.21157]
[1732413971032,1.55470671,3436.0,3435.9,4.21157]
[1732413971245,0.06542084,3436.0,3435.9,4.21157]
[1732413971397,1.28318548,3436.0,3435.9,4.21157]
[1732413972027,0.06542084,3436.0,3435.9,4.21157]
[1732413972218,1.30823415,3436.3,3435.9,4.21157]
[1732413972402,1.30823415,3436.3,3436.0,0.421157]
[1732413972627,1.30823415,3436.3,3436.1,2.9103]
[1732413974220,0.09046951,3436.3,3436.1,2.9103]
[1732413974532,1.30823415,3436.3,3436.2,0.9559]
[1732413974786,1.30823415,3436.3,3436.2,4.2948357]
[1732413974936,1.30823415,3436.3,3436.2,3.8661]
[1732413976337,0.03637057,3437.3,3436.3,0.9559]
[1732413976539,0.96474534,3438.7,3435.3,0.3904]
[1732413976540,0.27123092,3437.2,3436.5,0.951]
[1732413976739,1.21776464,3437.1,3436.7,0.951]
[1732413977043,0.9629,3437.8,3436.8,3.29579]
[1732413977244,0.27120147,3437.7,3436.9,0.8975]
[1732413977448,1.21776464,3437.5,3437.0,3.29022]
[1732413977651,1.21776464,3437.5,3437.1,0.8975]
[1732413977952,1.21776464,3437.3,3437.2,1.69153536]
[1732413978250,0.1523805,3437.9,3437.2,1.69153536]
[1732413978552,1.21776464,3437.5,3437.3,0.8975]
[1732413978751,0.1523805,3437.9,3437.4,4.127]
[1732413979325,0.05971487,3437.8,3437.4,4.127]
[1732413979517,0.05971487,3437.8,3437.5,0.52834035]
[1732413979856,0.05971487,3437.8,3437.6,4.1268]
[1732413980266,0.1,3440.8,3437.7,0.8975]
[1732413980439,1.160822,3441.8,3441.2,0.0999997]
[1732413980633,1.160822,3441.8,3441.7,0.0999997]
[1732413980836,2.76617909,3443.1,3442.4,0.0999997]
[1732413981170,2.76617909,3442.7,3442.4,0.0999997]
[1732413981671,2.78833058,3442.6,3442.5,4.1227]
[1732413981956,2.76617909,3442.6,3442.5,4.1227]
[1732413982348,3.66107909,3442.6,3442.5,4.1227]
[1732413982667,0.1,3442.4,3440.8,0.0999997]
[1732413982839,2.76617909,3441.3,3441.2,0.0999997]
[1732413983316,2.76617909,3441.3,3441.2,2.9059]
[1732413984326,3.31617909,3441.3,3441.2,2.9059]
[1732413984754,3.30143103,3441.3,3441.2,2.9059]
[1732413985065,3.85143103,3441.3,3441.2,2.9059]
[1732413987822,3.90779054,3441.3,3441.2,2.9059]
[1732413990368,4.49106249,3441.3,3441.2,2.9059]
[1732413990656,3.30143103,3440.2,3439.9,0.12906103]
[1732413990862,0.02215149,3441.1,3439.9,0.0999997]
[1732413991026,0.05628099,3440.1,3439.9,0.0999997]
[1732413991383,0.55,3441.0,3440.5,0.0999997]
[1732413991522,0.55,3441.0,3440.0,0.12906348]
[1732413991875,0.57215149,3441.0,3440.0,0.0999997]
[1732413992158,0.57215149,3441.0,3439.5,0.02906277]
[1732413992159,0.55,3440.5,3439.8,0.0999997]
[1732413992562,0.55,3440.5,3439.6,0.0999997]
[1732413993354,0.55,3440.5,3439.7,0.02906706]
[1732413993964,0.55,3440.5,3439.9,0.0999997]
[1732413995243,0.55,3440.5,3440.2,0.0999997]
[1732413996428,0.55,3440.5,3439.7,0.12906678]
[1732413996728,1.4608,3440.5,3439.7,0.0999997]
[1732413997658,1.4608,3440.5,3439.5,0.1290668]
[1732413997841,0.02215149,3440.4,3439.5,0.0999997]
[1732413998037,1.4608,3440.5,3439.5,0.0999997]
[1732413998247,0.55,3440.0,3439.5,0.0999997]
[1732413998455,0.55,3440.0,3439.4,0.0999997]
[1732413998657,0.55,3439.6,3439.0,0.0999997]
[1732413998971,0.55,3439.6,3438.4,0.9468]
[1732413998972,0.55,3439.6,3438.8,0.0999997]
[1732413999333,0.9011,3439.5,3438.8,0.0999997]
[1732413999535,0.55,3439.4,3438.8,0.0999997]
[1732413999831,0.55,3439.4,3438.9,2.9077]
[1732414000033,0.55,3439.2,3438.9,2.9077]
[1732414000471,0.05629406,3439.1,3438.9,2.9077]
[1732414000836,0.55,3439.0,3438.9,2.9077]
[1732414001075,0.60628751,3439.0,3438.9,2.9077]
[1732414002451,0.05628751,3439.0,3438.9,3.20846997]
[1732414002784,0.9011,3440.0,3439.4,0.0999997]
[1732414003080,3.30143103,3440.1,3439.5,2.9074]
[1732414003081,0.05531904,3439.9,3439.5,2.9074]
[1732414003256,3.30143103,3440.1,3439.6,0.02907015]
[1732414003455,0.0553125,3439.8,3439.6,0.02907015]
[1732414003645,3.30143103,3440.1,3439.7,2.9072]
[1732414004889,0.55,3440.0,3439.7,2.9072]
[1732414005456,3.30143103,3440.1,3439.7,2.9072]
[1732414005751,3.30143103,3440.1,3439.7,2.833567]
[1732414006654,0.55,3440.0,3439.7,2.833567]
[1732414007373,0.02215149,3439.9,3439.7,2.833567]
[1732414007878,0.55,3440.0,3439.7,2.833567]
[1732414008854,3.30143103,3440.1,3439.7,2.833567]
[1732414009056,0.00184534,3440.1,3439.7,3.2169234]
[1732414009503,0.00184534,3440.1,3439.7,2.9335667]
[1732414015228,0.05542648,3440.0,3439.7,2.9335667]
[1732414016086,0.05542648,3440.0,3439.7,2.833567]
[1732414016823,0.55,3439.9,3439.7,2.833567]
[1732414017188,0.605386,3439.9,3439.7,2.833567]
[1732414017819,0.055386,3439.9,3439.8,1.27117089]
[1732414018244,0.00184534,3440.1,3440.0,0.0999997]